[Event "Budapest Chess Festival 2024"]
[Site "Budapest"]
[Date "2024.05.26"]
[Round "4.8"]
[White "Kadric, Denis"]
[Black "Deuer, Marius"]
[Result "1-0"]
[ECO "B12"]
[WhiteElo "2558"]
[BlackElo "2436"]
[Annotator "TA"]
[PlyCount "91"]
[EventDate "2024.05.20"]
[EventType "swiss"]
[EventCountry "HUN"]
[SourceTitle "playchess.com"]
[Source "ChessBase"]
[SourceQuality "1"]
[TimeControl "40/5400+30:1800+30"]

{[%evp 9,91,3,4,6,10,18,12,0,0,0,-9,-31,-10,-10,-6,-41,34,32,41,30,54,48,203,224,197,203,206,105,105,114,111,101,104,106,106,104,208,208,205,185,204,203,209,212,208,210,206,209,196,202,217,208,233,226,220,218,221,222,220,197,206,197,231,185,227,202,364,375,477,468,864,801,1137,1109,1202,1176,1473,1469,2150,2038,2455,2829,2306,2022]} 1. e4 {[%emt 0:01:37]} c6 {[%emt 0:00:34]} 2. d4 {[%emt 0:00:05]} d5 {[%emt 0:00:04]} 3. e5 {[%emt 0:00:01]} Bf5 {[%emt 0:00:08]} 4. h4 {[%emt 0:00:02]} h5 {[%emt 0:00:06]} 5. Bd3 {[%emt 0:00:03]} Bxd3 {[%emt 0:00:10]} 6. Qxd3 {[%emt 0:00:01][%cal Oe5e6] B12: Caro-Kann: Advance Variation.} Qa5+ {[%emt 0:00:08]} 7. Nd2 {[%emt 0:00:03][%cal Oe5e6] Black must now prevent e6!} e6 {[%emt 0:00:09]} 8. Ne2 {[%emt 0:00:04]} Qa6 {[%emt 0:03:28]} 9. c4 {[%emt 0:00:15]} Ne7 {[%emt 0:06:22]} 10. O-O $1 {[%emt 0:00:09][%mdl 4] outshines the older 10.b3.} Nd7 {[%emt 0:06:06]} 11. b3 {[%emt 0:15:21]} Nf5 {[%emt 0:10:11]} 12. a4 $146 {[%emt 0:00:06]} ({Predecessor:} 12. g3 Rd8 13. Qc3 Be7 14. a4 dxc4 15. bxc4 c5 16. d5 exd5 17. Qf3 g6 18. cxd5 Nxe5 {0-1 Vasquez Schroder,R (2554)-Fontaine,R (2549) PRO League Stage rapid 2017 (7)}) 12... Rd8 {[%emt 0:05:20]} (12... Nxh4 $15 13. Ba3 Qa5) 13. Nf3 $14 {[%emt 0:04:40]} c5 {[%emt 0:03:04]} 14. Bg5 {[%emt 0:02:44]} Be7 {[%emt 0:16:54]} 15. Ng3 $36 {[%emt 0:01:42][%mdl 2048] White fights for an advantage.} Nf8 $2 {[%emt 0:06:44]} (15... dxc4 $14 16. bxc4 Nxd4) 16. Nxf5 $18 {[%emt 0:01:08]} exf5 {[%emt 0:00:05]} 17. Bxe7 {[%emt 0:00:52]} Kxe7 {[%emt 0:00:05]} 18. Qxf5 {[%emt 0:00:42]} (18. dxc5 dxc4 19. Qxf5 Qg6 20. Qxg6 Nxg6 21. bxc4 Rd7 $16) ({White should try} 18. Rfd1 $18) 18... Qg6 $16 {[%emt 0:00:07]} 19. Qxg6 {[%emt 0:04:29]} Nxg6 {[%emt 0:00:50]} 20. dxc5 {[%emt 0:00:21]} dxc4 {[%emt 0:01:38]} 21. bxc4 {[%emt 0:00:08]} Rd7 {[%emt 0:03:23]} 22. Rfd1 {[%emt 0:01:26]} Rhd8 {[%emt 0:05:37]} (22... Rc8 $16 {is a better defense.}) 23. Rd6 $18 {[%emt 0:00:34]} Rc8 {[%emt 0:03:26]} 24. Rad1 {[%emt 0:01:10]} Nf8 {[%emt 0:01:21]} 25. R1d5 {[%emt 0:00:59]} Rdc7 {[%emt 0:02:52]} 26. Nd4 {[%emt 0:00:30] Threatens to win with Nf5+.} Ne6 {[%emt 0:01:31]} 27. Nxe6 {[%emt 0:06:05]} fxe6 {[%emt 0:00:06][%mdl 4096] Endgame. KRR-KRR} 28. Rd4 {[%emt 0:00:01]} Kf7 {[%emt 0:02:00]} 29. Rd3 {[%emt 0:01:50]} Re7 {[%emt 0:02:57] [#]} 30. c6 $1 {[%emt 0:06:30]} Rxc6 {[%emt 0:00:45]} (30... bxc6 31. Kh2) 31. Rxc6 {[%emt 0:00:42]} bxc6 {[%emt 0:00:02] KR-KR} 32. Rd6 {[%emt 0:00:08]} Kg6 {[%emt 0:01:52]} 33. Rxc6 {[%emt 0:00:30]} Kf5 {[%emt 0:00:04]} 34. Rc5 {[%emt 0:01:19]} Ke4 {[%emt 0:00:52]} 35. Kh2 {[%emt 0:15:35]} Kd4 {[%emt 0:00:27]} 36. Rc6 {[%emt 0:00:03]} Kxe5 {[%emt 0:00:39] [#]} 37. Rc5+ $1 {[%emt 0:00:20]} Kd4 $2 {[%emt 0:00:06]} (37... Kf6 38. Rxh5 Rc7) 38. Rxh5 {[%emt 0:00:01]} Kxc4 {[%emt 0:07:45]} 39. Rh7 {[%emt 0:01:18]} Rf7 {[%emt 0:03:16]} (39... Kd5 $142 40. h5 Kd6) 40. h5 {[%emt 0:00:00][%cal Bh4h5,Bh5h6][%mdl 32]} Rf5 {[%emt 0:00:00]} 41. g4 {[%emt 0:04:13][%cal Bg2g4,Bg4g5][%mdl 32]} ({Not} 41. Rxg7 Rxh5+ 42. Kg3 a5 $16) 41... Rxf2+ {[%emt 0:01:57]} 42. Kg3 {[%emt 0:00:02]} Ra2 {[%emt 0:00:44]} 43. Rxg7 {[%emt 0:00:03]} Rxa4 {[%emt 0:00:07]} 44. h6 {[%emt 0:00:43]} Ra3+ {[%emt 0:00:21]} 45. Kf4 {[%emt 0:00:58]} Rh3 {[%emt 0:00:44]} 46. g5 {[%emt 0:01:06]} 1-0

[Event "Budapest Chess Festival 2024"]
[Site "Budapest"]
[Date "2024.05.26"]
[Round "4.9"]
[White "Tadic, Stefan"]
[Black "Nasuta, Grzegorz"]
[Result "0-1"]
[ECO "A06"]
[WhiteElo "2399"]
[BlackElo "2547"]
[Annotator "RC"]
[PlyCount "164"]
[EventDate "2024.05.20"]
[EventType "swiss"]
[EventCountry "HUN"]
[SourceTitle "playchess.com"]
[Source "ChessBase"]
[SourceQuality "1"]
[TimeControl "40/5400+30:1800+30"]

1. Nf3 {[%emt 0:06:30]} d5 {[%emt 0:01:41]} 2. e3 {[%emt 0:00:14]} Nf6 {[%emt 0:01:34]} 3. c4 {[%emt 0:00:06]} c6 {[%emt 0:00:06]} 4. Nc3 {[%emt 0:00:05]} e6 {[%emt 0:00:12]} 5. b3 {[%emt 0:00:06]} Bd6 {[%emt 0:00:15]} 6. Bb2 {[%emt 0:00:05]} O-O {[%emt 0:00:22]} 7. Be2 {[%emt 0:00:05]} b6 {[%emt 0:00:45]} 8. Qc2 {[%emt 0:01:13]} Bb7 {[%emt 0:00:47]} 9. d4 {[%emt 0:01:47]} Nbd7 {[%emt 0:00:21]} 10. O-O {[%emt 0:00:07]} Qe7 {[%emt 0:00:27]} 11. Rfd1 {[%emt 0:04:56]} Rfd8 {[%emt 0:01:15]} 12. a4 {[%emt 0:06:14]} a5 {[%emt 0:02:09]} 13. Rac1 {[%emt 0:06:52]} Rac8 {[%emt 0:00:32]} 14. Qb1 {[%emt 0:00:06]} h6 {[%emt 0:08:15]} 15. Nh4 {[%emt 0:08:30]} c5 {[%emt 0:23:09]} 16. Nb5 {[%emt 0:11:44]} Bb8 {[%emt 0:08:57]} 17. g3 {[%emt 0:02:20]} e5 {[%emt 0:13:18]} 18. Bf3 {[%emt 0:05:20]} cxd4 {[%emt 0:02:11]} 19. exd4 {[%emt 0:01:26]} e4 {[%emt 0:00:04]} 20. Be2 {[%emt 0:06:16]} Qe6 {[%emt 0:00:25]} 21. Ng2 {[%emt 0:01:48]} Ng4 {[%emt 0:03:14]} 22. f3 {[%emt 0:06:53]} Ne3 {[%emt 0:13:28]} 23. Nxe3 {[%emt 0:12:41]} exf3 {[%emt 0:00:06]} 24. Bxf3 {[%emt 0:00:04]} Qxe3+ {[%emt 0:00:05]} 25. Kg2 {[%emt 0:00:05]} Qxb3 {[%emt 0:00:05]} 26. Qc2 {[%emt 0:00:22]} Qe3 {[%emt 0:14:13]} 27. Qd2 {[%emt 0:02:14]} Qe6 {[%emt 0:01:18]} 28. Re1 {[%emt 0:01:25]} Qf5 {[%emt 0:00:14]} 29. Rf1 {[%emt 0:05:39]} Nf6 {[%emt 0:01:29]} 30. c5 {[%emt 0:00:40]} Qg6 {[%emt 0:01:50]} 31. cxb6 {[%emt 0:01:36]} Ne4 {[%emt 0:00:11]} 32. Qe2 {[%emt 0:03:12]} Qxb6 {[%emt 0:00:12]} 33. Ba3 {[%emt 0:01:13]} Re8 {[%emt 0:00:17]} 34. Rxc8 {[%emt 0:00:50]} Bxc8 {[%emt 0:00:19]} 35. Qd1 {[%emt 0:03:12]} Qe6 {[%emt 0:00:32]} 36. Kg1 {[%emt 0:00:47]} Bd7 {[%emt 0:02:26]} 37. Bg2 {[%emt 0:01:09]} Qg6 {[%emt 0:00:27]} 38. Qd3 {[%emt 0:00:34]} Bf5 {[%emt 0:01:24]} 39. Qf3 {[%emt 0:01:01]} Bg4 {[%emt 0:00:21]} 40. Qd3 {[%emt 0:00:00]} Bf5 {[%emt 0:00:00]} 41. Qf3 {[%emt 0:00:39]} Be6 {[%emt 0:14:39]} 42. Bc1 {[%emt 0:08:51]} Rc8 {[%emt 0:02:20]} 43. Bf4 {[%emt 0:05:19]} Bxf4 {[%emt 0:00:23]} 44. Qxf4 {[%emt 0:00:03]} Rc4 {[%emt 0:05:05]} 45. Qb8+ {[%emt 0:03:31]} Kh7 {[%emt 0:00:47]} 46. Qe5 {[%emt 0:00:07]} Rxa4 {[%emt 0:09:09]} 47. Nc7 {[%emt 0:00:09]} Nc3 {[%emt 0:00:29]} 48. Nxd5 {[%emt 0:01:53]} Bxd5 {[%emt 0:01:31]} 49. Bxd5 {[%emt 0:00:02]} Qd3 {[%emt 0:00:59]} 50. Bxf7 {[%emt 0:04:33]} Qxd4+ {[%emt 0:00:05]} 51. Qxd4 {[%emt 0:00:04]} Rxd4 {[%emt 0:00:09]} 52. Rf5 {[%emt 0:00:54]} a4 {[%emt 0:01:07]} 53. Ra5 {[%emt 0:00:01]} g5 {[%emt 0:00:16]} 54. Rc5 {[%emt 0:04:41]} Ne4 {[%emt 0:00:46]} 55. Rc7 {[%emt 0:00:02]} Kg7 {[%emt 0:00:37]} 56. Bd5+ {[%emt 0:00:57]} Kf6 {[%emt 0:00:01]} 57. Bxe4 {[%emt 0:00:50]} Rxe4 {[%emt 0:00:01]} 58. Kf2 {[%emt 0:00:08]} Ke5 {[%emt 0:00:30]} 59. Ra7 {[%emt 0:04:54]} g4 {[%emt 0:00:20]} 60. Ra5+ {[%emt 0:00:26]} Kd6 {[%emt 0:00:03]} 61. Rh5 {[%emt 0:00:14]} Kc6 {[%emt 0:00:20]} 62. h3 {[%emt 0:00:32]} gxh3 {[%emt 0:00:36]} 63. Rxh6+ {[%emt 0:00:55]} Kb5 {[%emt 0:00:01]} 64. Rxh3 {[%emt 0:00:06]} a3 {[%emt 0:00:05]} 65. Rh1 {[%emt 0:00:18]} Ka4 {[%emt 0:00:35]} 66. Kf3 {[%emt 0:01:25]} Rb4 {[%emt 0:00:01]} 67. g4 {[%emt 0:00:06]} a2 {[%emt 0:00:01]} 68. Ra1 {[%emt 0:00:04]} Ka3 {[%emt 0:00:07]} 69. Kg3 {[%emt 0:00:02]} Kb2 {[%emt 0:03:16]} 70. Rxa2+ {[%emt 0:00:35]} Kxa2 71. Kh4 {[%emt 0:00:06]} Kb3 {[%emt 0:01:15]} 72. Kg5 {[%emt 0:01:16]} Kc4 {[%emt 0:00:20]} 73. Kf6 {[%emt 0:01:53]} Kd5 {[%emt 0:00:09]} 74. g5 {[%emt 0:00:02]} Rb6+ {[%emt 0:00:07]} 75. Kf5 {[%emt 0:00:07]} Kd6 {[%emt 0:00:04]} 76. Kf6 {[%emt 0:00:04]} Kd7+ {[%emt 0:00:17]} 77. Kf7 {[%emt 0:00:00]} Rb1 {[%emt 0:00:06]} 78. g6 {[%emt 0:00:05]} Rf1+ {[%emt 0:00:02]} 79. Kg8 {[%emt 0:00:06]} Ke7 {[%emt 0:00:06]} 80. g7 {[%emt 0:00:50]} Rg1 {[%emt 0:00:28]} 81. Kh7 {[%emt 0:00:13]} Kf7 {[%emt 0:00:05]} 82. Kh8 {[%emt 0:00:04]} Rh1# 0-1

[Event "Budapest Chess Festival 2024"]
[Site "Budapest"]
[Date "2024.05.26"]
[Round "4.10"]
[White "Samunenkov, Ihor"]
[Black "Aizenberg, Benny"]
[Result "1-0"]
[ECO "B22"]
[WhiteElo "2547"]
[BlackElo "2403"]
[Annotator "TA"]
[PlyCount "109"]
[EventDate "2024.05.20"]
[EventType "swiss"]
[EventCountry "HUN"]
[SourceTitle "playchess.com"]
[Source "ChessBase"]
[SourceQuality "1"]
[TimeControl "40/5400+30:1800+30"]

{[%evp 14,108,10,27,58,50,62,35,58,59,55,51,60,44,58,39,43,45,51,18,10,10,6,1,18,16,101,88,112,21,30,22,145,144,203,202,188,156,168,142,146,96,93,98,77,54,55,47,168,184,187,182,198,183,205,202,214,215,247,228,237,230,228,222,226,227,220,205,279,278,270,267,311,307,298,280,359,358,646,632,5850,29964,29974,29975,29975,29976,29987,29988,29988,29989,29991,29992,29995,29996,29996,29997,29999]} 1. e4 {[%emt 0:00:35]} c5 {[%emt 0:00:35][%cal Bc7c5,Bc5c4][%mdl 32]} 2. c3 {[%emt 0:00:07]} Nf6 {[%emt 0:00:26]} 3. e5 {[%emt 0:00:09]} Nd5 {[%emt 0:00:04]} 4. Bc4 {[%emt 0:00:11][%cal Bf1c4,Bc4b3,Bb3c2][%mdl 32]} Nb6 {[%emt 0:00:27]} 5. Bb3 {[%emt 0:00:06]} c4 {[%emt 0:03:01]} 6. Bc2 {[%emt 0:00:09]} Nc6 {[%emt 0:01:36]} 7. Nf3 {[%emt 0:00:11]} d5 {[%emt 0:02:25]} 8. exd6 {[%emt 0:00:13]} exd6 {[%emt 0:00:59]} 9. O-O {[%emt 0:03:43]} Be7 {[%emt 0:00:21]} 10. Re1 {[%emt 0:13:47]} O-O {[%emt 0:02:16] White is slightly better.} 11. d4 {[%emt 0:01:11]} Bg4 {[%emt 0:04:38][%cal Bc8g4,Bg4h5,Bh5g6][%mdl 32]} 12. Nbd2 {[%emt 0:10:05][%cal Od2c4]} d5 {[%emt 0:05:20]} 13. Nf1 {[%emt 0:02:28]} Bh5 {[%emt 0:06:19]} 14. Ng3 {[%emt 0:02:43]} Bg6 {[%emt 0:00:14]} 15. Nf5 {[%emt 0:02:06]} Bf6 {[%emt 0:08:18]} 16. Ne5 {[%emt 0:06:38]} Bxe5 {[%emt 0:12:16]} 17. dxe5 {[%emt 0:00:08]} Qd7 {[%emt 0:01:45]} 18. g4 {[%emt 0:12:26]} Rfe8 {[%emt 0:10:16]} 19. Bf4 {[%emt 0:08:24]} Nc8 {[%emt 0:06:04]} (19... Ne7 $11 {keeps the balance.}) 20. Bg3 $16 {[%emt 0:09:54]} N8e7 {[%emt 0:03:21]} 21. Nd6 {[%emt 0:00:32]} ({White should play} 21. Qf3 $16) 21... Bxc2 $11 {[%emt 0:00:25]} 22. Qxc2 {[%emt 0:00:08] Black must now prevent Qe2.} Rf8 {[%emt 0:00:36]} (22... Qxg4 $1 $11 23. Nxe8 Rxe8) 23. h3 {[%emt 0:01:23][%cal Od6f7] White is much more active.} Nd8 {[%emt 0:04:22]} (23... f6 $16 {was called for.} 24. e6 Qd8) 24. Rad1 $18 {[%emt 0:03:45] Black is weak on the dark squares} Qc6 {[%emt 0:00:10]} 25. Nf5 {[%emt 0:03:52]} Re8 {[%emt 0:02:26]} 26. Qd2 {[%emt 0:00:49]} Ne6 {[%emt 0:00:54]} 27. Nxe7+ {[%emt 0:02:19]} (27. Nd6 $142) 27... Rxe7 $16 {[%emt 0:00:05]} 28. Qxd5 {[%emt 0:00:07]} Qa4 {[%emt 0:00:59]} 29. a3 {[%emt 0:06:34]} Rd8 {[%emt 0:01:30]} 30. Qf3 {[%emt 0:00:12]} Red7 {[%emt 0:00:06] This move loses the game for Black.} ({Better is} 30... Rdd7 $14) 31. Rd6 $18 {[%emt 0:00:34]} Qb5 {[%emt 0:02:28]} 32. Re2 {[%emt 0:01:34]} Re8 {[%emt 0:03:01]} 33. Red2 {[%emt 0:00:58]} Rc7 {[%emt 0:00:06]} 34. Qe4 {[%emt 0:02:44]} h6 {[%emt 0:00:49]} 35. f4 {[%emt 0:00:46][%cal Bf2f4,Bf4f5][%mdl 32]} Nc5 {[%emt 0:00:47]} 36. Qd5 {[%emt 0:00:24]} a6 {[%emt 0:00:47]} 37. f5 {[%emt 0:02:24]} Rce7 {[%emt 0:01:33] [#]} 38. a4 $1 {[%emt 0:02:48][%mdl 512]} Nxa4 {[%emt 0:00:15]} 39. Qxb5 {[%emt 0:00:25]} axb5 {[%emt 0:00:09] [#]} 40. R6d5 {[%emt 0:00:00] Repels Nc5} Rc8 {[%emt 0:00:00]} 41. Rxb5 {[%emt 0:08:30]} Nc5 {[%emt 0:08:48]} 42. Rd4 {[%emt 0:00:54] Prevents Ne4} Nb3 {[%emt 0:02:29]} 43. Rdd5 {[%emt 0:03:56]} Ra8 {[%emt 0:03:11]} 44. Bh4 {[%emt 0:00:40]} Ree8 {[%emt 0:01:03]} 45. Rxb7 {[%emt 0:01:19][%cal Oe5e6] e6! is the strong threat.} Ra1+ $2 {[%emt 0:02:29]} (45... Rab8 46. Rc7 Rec8 47. Rxc8+ Rxc8) 46. Kg2 {[%emt 0:00:12][%cal Oe5e6] Strongly threatening e6!} Rb1 {[%emt 0:01:41] [#]} 47. e6 $1 {[%emt 0:00:44]} Rxb2+ {[%emt 0:00:06] White mates.} 48. Kg3 {[%emt 0:00:16]} Kh7 {[%emt 0:05:07]} 49. Rxf7 {[%emt 0:01:33]} Nd2 {[%emt 0:00:10]} 50. Rdd7 {[%emt 0:00:23]} Rg8 {[%emt 0:00:37]} 51. Kf4 {[%emt 0:00:20]} Nb1 {[%emt 0:00:19]} 52. Bf6 {[%emt 0:00:18]} h5 {[%emt 0:01:23]} 53. Rxg7+ {[%emt 0:00:07]} Rxg7 {[%emt 0:00:04]} 54. Rxg7+ {[%emt 0:00:08]} Kh6 {[%emt 0:00:03]} 55. g5# {[%emt 0:00:08] Weighted Error Value: White=0.09 (flawless) /Black=0.24 (precise) .  Mistake:       	White=2     	Black=5      Inaccurate:     	White=2     	Black=2      OK:         	White=17    	Black=16     Best:        	White=3     	Black=1} 1-0

[Event "Budapest Chess Festival 2024"]
[Site "Budapest"]
[Date "2024.05.26"]
[Round "4.11"]
[White "Ivanisevic, Ivan"]
[Black "Pasti, Aron"]
[Result "1-0"]
[ECO "D30"]
[WhiteElo "2537"]
[BlackElo "2400"]
[Annotator "TA"]
[PlyCount "57"]
[EventDate "2024.05.20"]
[EventType "swiss"]
[EventCountry "HUN"]
[SourceTitle "playchess.com"]
[Source "ChessBase"]
[SourceQuality "1"]
[TimeControl "40/5400+30:1800+30"]

{[%evp 13,57,16,26,7,58,47,68,73,69,77,84,79,68,61,70,70,124,116,144,124,130,135,139,154,157,165,248,240,219,152,206,199,226,239,242,147,156,115,85,34,358,266,606,137,29994,29995]} 1. d4 {[%emt 0:01:36]} d5 {[%emt 0:00:44]} 2. c4 {[%emt 0:00:10]} e6 {[%emt 0:00:04]} 3. Nf3 {[%emt 0:01:36]} Nf6 {[%emt 0:00:22]} 4. Bg5 {[%emt 0:00:04]} Be7 {[%emt 0:00:12]} 5. Nc3 {[%emt 0:00:56]} h6 {[%emt 0:00:06]} 6. Bf4 {[%emt 0:00:04]} O-O {[%emt 0:00:25]} 7. e3 {[%emt 0:00:03]} b6 {[%emt 0:09:31]} 8. g4 {[%emt 0:02:18]} Ne4 {[%emt 0:12:45]} (8... c5 $11) 9. h4 $14 {[%emt 0:13:19][%cal Og4g5]} Bd6 {[%emt 0:22:38]} 10. Bxd6 {[%emt 0:01:29] White is slightly better.} (10. cxd5 $6 Nxc3 11. bxc3 Bxf4 12. exf4 exd5 $11) 10... Qxd6 {[%emt 0:06:34]} 11. g5 $1 {[%emt 0:00:57]} Nxc3 {[%emt 0:04:50]} 12. bxc3 {[%emt 0:00:08] Threatens to win with gxh6.} h5 {[%emt 0:11:54] [#]} 13. g6 $1 {[%emt 0:03:42] Hoping for gxf7+.} fxg6 {[%emt 0:00:04]} (13... Nd7 14. gxf7+) 14. Ne5 {[%emt 0:01:31]} Rf6 {[%emt 0:01:16]} (14... Bb7 $14) 15. Rg1 $16 {[%emt 0:03:48]} Qa3 {[%emt 0:10:53]} 16. Rc1 {[%emt 0:05:25] White is more active.} (16. Nxg6 $2 Qxc3+ 17. Ke2 Qb2+ (17... Qxc4+ $2 18. Qd3 $19) 18. Qd2 Rxf2+ (18... Qxa1 $2 19. Ne7+ Kh8 20. Rg5 $19) 19. Kxf2 Qxd2+ $19) 16... Bd7 {[%emt 0:02:59]} 17. Nxg6 {[%emt 0:06:42]} (17. Rxg6 Rxg6 18. Nxg6 Ba4 $14) 17... Ba4 {[%emt 0:00:52] Dodges Rc2} 18. Qd2 {[%emt 0:00:36]} (18. Qxh5 $2 Qxc1+ 19. Ke2 Qd1#) 18... Nd7 {[%emt 0:00:05]} 19. Bd3 {[%emt 0:07:13]} Rd8 {[%emt 0:03:23]} (19... Re8 $142) 20. cxd5 $1 $18 {[%emt 0:14:11]} exd5 {[%emt 0:00:10]} 21. f4 {[%emt 0:00:20]} Rc6 {[%emt 0:07:27]} (21... Nf8 $16) 22. Rg5 {[%emt 0:06:08][%csl LRd5,LRh5]} Nf6 {[%emt 0:00:01]} 23. Ne5 {[%emt 0:00:09]} Re6 {[%emt 0:00:05]} 24. Kf2 {[%emt 0:00:45]} c5 {[%emt 0:02:07]} 25. Rcg1 {[%emt 0:00:59]} Re7 {[%emt 0:00:02]} 26. Kf3 {[%emt 0:05:40] The board is on fire.} (26. Kg2 $16 Bd7 27. Kh2 cxd4 28. cxd4) 26... Bd7 $2 {[%emt 0:02:08][%mdl 8192] [#]} ({Better is} 26... cxd4 $1 $14 27. cxd4 Rc8) 27. f5 $1 {[%emt 0:12:48] And now Qg2 would win.} cxd4 $2 {[%emt 0:01:04] [#]} (27... Ng4 28. Rxh5 (28. Nxg4 hxg4+ 29. Kxg4 cxd4 $16) 28... Rxe5) 28. exd4 $2 {[%emt 0:00:54]} ({Less strong is} 28. cxd4 Be8 $16) (28. Qg2 $1 $18 {[%cal Rg5g7] and the rest is easy.} Ng4 (28... Rxe5 $2 {perishes.} 29. Rxg7+ Kf8 30. Rg8+ Nxg8 31. Qg7+ Ke8 32. Qxe5+ Kf8 33. Qg7+ Ke8 34. f6 $18) 29. Nxg4 (29. exd4 $2 Qxc3 30. Qc2 Nxe5+ 31. dxe5 Qxe5 $19) 29... hxg4+ 30. Qxg4 (30. Kxg4 Qd6 $16) 30... Rxe3+ 31. Kg2) 28... Rde8 $2 {[%emt 0:01:07][%mdl 8192] [#]} (28... Rf8 $16 29. Ng6 Ref7) 29. Rxg7+ $3 {[%emt 0:00:24][%mdl 512] Weighted Error Value: White=0.29 (precise) /Black=0.89.  Loses game:     	---       	Black=2      Missed win:     	White=1     	---        Mistake:       	White=1     	Black=5      Inaccurate:     	White=2     	---        OK:         	White=7     	Black=6      Best:        	White=2     	---        Strong:       	White=3     	---} 1-0

[Event "Budapest Chess Festival 2024"]
[Site "Budapest"]
[Date "2024.05.26"]
[Round "4.12"]
[White "Szpar, Milosz"]
[Black "Iliaguev, Nisim"]
[Result "1/2-1/2"]
[ECO "C42"]
[WhiteElo "2512"]
[BlackElo "2397"]
[Annotator "TA"]
[PlyCount "44"]
[EventDate "2024.05.20"]
[EventType "swiss"]
[EventCountry "HUN"]
[SourceTitle "playchess.com"]
[Source "ChessBase"]
[SourceQuality "1"]
[TimeControl "40/5400+30:1800+30"]

{[%evp 12,44,17,8,10,-7,0,-3,0,0,0,-45,-46,-29,-3,-7,0,-51,-50,-43,-50,-44,-48,-44,-34,-35,-9,-15,-11,-25,-22,-20,-11,-15,-12]} 1. e4 {[%emt 0:00:34]} e5 {[%emt 0:00:38]} 2. Nf3 {[%emt 0:00:17]} Nf6 {[%emt 0:00:06]} 3. Nxe5 {[%emt 0:01:56]} d6 {[%emt 0:00:09]} 4. Nf3 {[%emt 0:00:04]} Nxe4 {[%emt 0:00:06]} 5. d3 {[%emt 0:00:06]} Nf6 {[%emt 0:00:34]} 6. d4 {[%emt 0:00:04]} d5 {[%emt 0:01:48]} 7. h3 {[%emt 0:02:00]} h6 {[%emt 0:00:48]} 8. c4 {[%emt 0:05:06]} Bb4+ {[%emt 0:00:44]} 9. Nc3 {[%emt 0:00:10]} O-O {[%emt 0:00:40]} 10. Be3 {[%emt 0:06:56]} Re8 {[%emt 0:04:08]} 11. a3 {[%emt 0:09:24]} Bxc3+ {[%emt 0:02:16]} 12. bxc3 {[%emt 0:00:05]} Ne4 {[%emt 0:00:33]} 13. Bd3 {[%emt 0:10:26]} Bf5 {[%emt 0:09:41]} 14. Bxe4 {[%emt 0:09:11]} (14. Rc1 $1 $11) 14... Bxe4 $15 {[%emt 0:00:32]} 15. cxd5 {[%emt 0:00:09]} Qxd5 {[%emt 0:00:54]} 16. O-O {[%emt 0:00:08] White is weak on the light squares} Nd7 {[%emt 0:03:40]} 17. Re1 {[%emt 0:00:30]} Nb6 {[%emt 0:12:41]} 18. Ne5 $1 {[%emt 0:06:07]} Nc4 {[%emt 0:20:13]} ({Much weaker is} 18... Bxg2 $6 19. Qg4 Rxe5 20. dxe5 $16) (18... f6 $5 19. c4 Qe6 $15 (19... Nxc4 20. Nxc4 Qxc4 21. Bxh6 $11)) 19. Nxc4 {[%emt 0:11:13]} Qxc4 {[%emt 0:00:05]} 20. f3 {[%emt 0:00:55]} Bg6 {[%emt 0:06:18]} 21. Qd2 {[%emt 0:01:12]} Re6 {[%emt 0:01:12]} 22. Bf4 {[%emt 0:02:31]} Rae8 {[%emt 0:01:00] Weighted Error Value: White=0.11 (very precise) /Black=0.07 (flawless) .  Mistake:       	White=1     	---        Inaccurate:     	White=1     	Black=2      OK:         	White=5     	Black=5      Best:        	White=2     	---        Strong:       	White=1     	---} 1/2-1/2